Cogmind - Beta 12 @@@ ROGUE MODE // 2024.02.15 @ 22:22:02 Player: Utheran Result: Destroyed by G-47 Trooper with Particle Gun Performance ------------- Evolutions (0) 0 Regions Visited (2) 400 Robots Destroyed (9) 45 Value Destroyed (232) 232 Prototype IDs (0) 0 Alien Tech Used (0) 0 Bonus (0) 0 TOTAL SCORE: 677 Bonus ------- None Cogmind --------- Core Integrity 0/250 Matter 241/300 Energy 265/265 System Corruption 2% Temperature Cool (9) Movement Core (250) Ox4 Location -10/Mines Parts ------- > --- POWER (1) -------- Improved Ion Engine > --- PROPULSION (2) --- (None) > --- UTILITY (2) ------ Small Storage Unit Power Shielding > --- WEAPON (2) ------- Light Assault Rifle > --- INVENTORY (8) ---- Improved Ion Engine Experimental Sensor Array Signal Interpreter Light Armor Plating Grenade Launcher Peak State ------------ > --- POWER ------------ Improved Ion Engine > --- PROPULSION ------- Compact Wheel > --- UTILITY ---------- Small Storage Unit Power Shielding > --- WEAPON ----------- Medium Laser Particle Gun > --- INVENTORY -------- Improved Ion Engine Signal Interpreter Light Armor Plating Small Laser Grenade Launcher Plasma Cutter Plasma Cutter [Rating: 9] Favorites ----------- Power Light Ion Engine Engine Light Ion Engine Propulsion Compact Wheel Wheel Compact Wheel Utility Small Storage Unit Storage Small Storage Unit Protection Power Shielding Weapon EM Pulse Gun Energy Gun EM Pulse Gun Ballistic Gun Light Assault Rifle Special Weapon Plasma Cutter Build | -11 -10 -10 ------- Run | Jun Mat Min Slots Evolved . | . . . Power . | . . . Propulsion . | . . . Utility . | . . . Weapon . | . . . Parts Attached 23 | 5 14 4 Power 3 | . 3 . Engine 3 | . 3 . Core . | . . . Reactor . | . . . Propulsion 4 | 2 2 . Treads . | . . . Leg . | . . . Wheel 4 | 2 2 . Hover . | . . . Flight . | . . . Utility 2 | 1 1 . Device . | . . . Storage 1 | 1 . . Processor . | . . . Hackware . | . . . Protection 1 | . 1 . Artifact . | . . . Weapon 14 | 2 8 4 Energy Gun 4 | 2 2 . Energy Cannon . | . . . Ballistic Gun 1 | . . 1 Ballistic Cannon . | . . . Launcher . | . . . Special Weapon 9 | . 6 3 Impact Weapon . | . . . Slashing Weapon . | . . . Piercing Weapon . | . . . Special Melee Weapon . | . . . Unidentified Prototypes . | . . . Parts Lost 10 | . 5 5 Power . | . . . Propulsion 4 | . 3 1 Utility . | . . . Weapon 6 | . 2 4 Highest Loss Streak 5 | . 4 5 To Critical Strikes . | . . . Average Slot Usage (%) 75 | . 86 58 Engine 14 | . 14 14 Wheel 12 | . 20 . Storage 14 | . 14 14 Protection 11 | . 10 14 Energy Gun 14 | . 23 . Ballistic Gun 4 | . . 12 Special Weapon 2 | . 3 2 Naked Turns . | . . . Heaviest Build 18 | 9 18 15 Greatest Support 32 | 26 32 16 Greatest Overweight (x) 4 | . 3 4 Average Overweight (x) . | . . 3 Largest Inventory Capacity 8 | 8 8 8 Average Capacity 7 | 7 8 8 Most Carried 8 | 5 8 6 Average Carried 5 | 3 6 4 Final Capacity 8 | 8 8 8 Final Carried 6 | 4 6 5 Class Distribution -------------------- 100% | Mutant Dominant Class ---------------- Mutant | -10/Materials Mutant | -10/Mines Resources | -11 -10 -10 ----------- Run | Jun Mat Min Matter Collected 335 | 228 67 40 Remotely . | . . . Salvage Created 312 | . 272 40 Parts 20 | . 15 5 Haulers Intercepted . | . . . Recyclers Shooed . | . . . Parts Field Recycled . | . . . Retrieved Matter . | . . . Parts Self-Destructed . | . . . Prevented . | . . . Kills | -11 -10 -10 ------- Run | Jun Mat Min Combat Hostiles Destroyed 8 | . 5 3 Guns 3 | . 2 1 Cannons 2 | . . 2 AOE 2 | . 2 . Classes Destroyed 3 | . 2 1 Recycler 1 | . 1 . Swarmer 3 | . . 3 Grunt 5 | . 5 . Best Kill Streak 3 | . 3 2 Combat Bots Only 3 | . 3 2 Max Kills in Single Turn 2 | . 2 1 Gunslinging . | . . . Exploded 2 | . 2 . Melee . | . . . Uniques/NPCs Destroyed . | . . . Combat | -11 -10 -10 -------- Run | Jun Mat Min Damage Taken 860 | . 270 590 Core 255 | . 28 227 Absorbed by Shields . | . . . Redirected to Shielding 26 | . 9 17 Core Remaining (%) 100 | 100 . . Volleys Fired 35 | . 21 14 Largest 2 | . 2 2 Hottest 200 | . 200 100 Shots Fired 52 | . 36 16 Gun 33 | . 26 7 Cannon . | . . . Launcher . | . . . Special 19 | . 10 9 Kinetic 7 | . . 7 Thermal 27 | . 18 9 Explosive . | . . . Electromagnetic 18 | . 18 . Robot Hit Streak 7 | . 7 1 Robot Miss Streak 7 | . 2 7 Penetration Max . | . . . Secondary Targets . | . . . Shots Hit Robots 24 | . 19 5 Core Hits 12 | . 8 4 Critical Kills . | . . . Critical Parts Destroyed . | . . . Critical Strikes . | . . . Melee Attacks . | . . . Impact . | . . . Slashing . | . . . Piercing . | . . . Sneak Attacks . | . . . Combat Hostiles . | . . . Follow-up Attacks . | . . . Damage Inflicted 576 | . 501 75 Guns 265 | . 235 30 Cannons . | . . . Explosions 266 | . 266 . Melee . | . . . Ramming . | . . . Kinetic 30 | . . 30 Thermal 360 | . 315 45 Explosive . | . . . Electromagnetic 186 | . 186 . Impact . | . . . Slashing . | . . . Piercing . | . . . Highest Corruption 2 | . 2 2 Average Corruption 2 | . 2 2 Corruption Purged . | . . . Corruption Blocked . | . . . Effects 5 | . 2 3 Message Errors 2 | . . 2 Matter Fused 1 | . 1 . Energy Discharges 1 | . . 1 Misfires 1 | . 1 . Overload Shots . | . . . Overflow Damage 57 | . 53 4 Projectiles 4 | . . 4 Explosions 53 | . 53 . Melee . | . . . Knockbacks . | . . . Impact . | . . . Kinetic . | . . . Secondary . | . . . Self-Inflicted Damage 109 | . 109 . Shots 2 | . 2 . Rammed . | . . . Targets Rammed . | . . . Kicked . | . . . Crushed . | . . . Highest Temperature 156 | . 156 48 Average Temperature 44 | . 52 15 Received Heat Transfer 189 | . 93 96 Siege Activations . | . . . Robots Corrupted 1 | . 1 . Combat Hostiles 1 | . 1 . Parts Fried . | . . . Impact Corruptions . | . . . Robots Melted . | . . . Combat Hostiles . | . . . Parts Melted 2 | . 1 1 Heat Transferred 572 | . 448 124 Parts Sabotaged . | . . . Parts Stolen . | . . . Parts Stripped . | . . . Power Chain Reactions 3 | . 3 . Missiles Intercepted . | . . . Alert | -11 -10 -10 ------- Run | Jun Mat Min Peak Influence 169 | . 169 60 Initial 13 | . . 13 Average 53 | . 59 53 Maximum Alert Level . | . . . Low Security (%) 100 | 100 100 100 Level 1 . | . . . Level 2 . | . . . Level 3 . | . . . Level 4 . | . . . Level 5 . | . . . High Security . | . . . Max Security . | . . . Squads Dispatched 1 | . 1 . Investigation . | . . . Extermination . | . . . Reinforcement 1 | . 1 . Assault . | . . . Garrison . | . . . Intercept . | . . . Searches Triggered . | . . . Construction Impeded . | . . . Haulers Reinforced . | . . . Active Scanning Responses . | . . . Cargo Convoy Interrupts . | . . . Stealth | -11 -10 -10 --------- Run | Jun Mat Min Distress Signals . | . . . Communications Jammed . | . . . Distress Signals . | . . . Times Spotted 15 | . 9 6 Peak Tracking Total 3 | . 3 3 Tactical Retreats 1 | . 1 . Traps | -11 -10 -10 ------- Run | Jun Mat Min Traps Triggered 1 | . 1 . Indirectly . | . . . Trap Hack Attempts . | . . . Triggered . | . . . Disarmed . | . . . Reprogrammed . | . . . Reused . | . . . Traps Extracted . | . . . Installed . | . . . Triggered . | . . . Machines | -11 -10 -10 ---------- Run | Jun Mat Min Machines Disabled . | . . . Max in Single Turn . | . . . Machines Repaired . | . . . Machines Sabotaged . | . . . Overloaded Fab Kills . | . . . Hacking | -11 -10 -10 --------- Run | Jun Mat Min Machines Accessed 4 | . 4 . Terminals 3 | . 3 . Fabricators . | . . . Repair Stations . | . . . Recycling Units 1 | . 1 . Scanalyzers . | . . . Garrison Access . | . . . Total Hacks 7 | . 7 . Successful 4 | . 4 . Failed 3 | . 3 . Catastrophic . | . . . Database Lockouts . | . . . Manual . | . . . Terminals 6 | . 6 . Fabricators . | . . . Repair Stations . | . . . Recycling Units 1 | . 1 . Scanalyzers . | . . . Garrison Access . | . . . Terminal Hacks 3 | . 3 . Emergency Access Points 1 | . 1 . Alert Level 2 | . 2 . Fabricator Hacks . | . . . Repair Station Hacks . | . . . Recycling Unit Hacks 1 | . 1 . Report Inventory 1 | . 1 . Scanalyzer . | . . . Garrison Access Hacks . | . . . Unauthorized Hacks . | . . . Terminals . | . . . Fabricators . | . . . Repair Stations . | . . . Recycling Units . | . . . Scanalyzers . | . . . Garrison Access . | . . . Data Cores Recovered . | . . . Used . | . . . Hacking Detections 2 | . 2 . Full Trace Events 1 | . 1 . Feedback Events . | . . . Feedback Blocked . | . . . Robot Schematics Acquired . | . . . Robots Built . | . . . Authchips . | . . . Time . | . . . Total Robot Build Rating . | . . . Part Schematics Acquired . | . . . Parts Built . | . . . Authchips . | . . . Time . | . . . Total Part Build Rating . | . . . Parts Repaired . | . . . Time . | . . . Parts Recycled . | . . . Recycled Matter . | . . . Retrieved Matter . | . . . Retrieved Components . | . . . Parts Scanalyzed . | . . . Part Schematics Acquired . | . . . Parts Damaged . | . . . Bothacking | -11 -10 -10 ------------ Run | Jun Mat Min Used RIF Installer . | . . . Robots Hacked . | . . . Non-combat . | . . . Combat . | . . . Robot Hacks Applied . | . . . Relay Couplers Released . | . . . Fabnet Peak Effective % . | . . . Robots Rewired . | . . . Allies Hacked . | . . . Hacks Repelled . | . . . Allies | -11 -10 -10 -------- Run | Jun Mat Min Total Allies . | . . . Largest Group . | . . . Highest-Rated Group . | . . . Highest-Rated Ally . | . . . Total Orders . | . . . Ally Attacks . | . . . Total Damage . | . . . Kills . | . . . Allies Corrupted . | . . . Allies Melted . | . . . Intel | -11 -10 -10 ------- Run | Jun Mat Min Robot Analysis Total . | . . . Derelict Logs Recovered . | . . . Drone Launches . | . . . Drone Recoveries . | . . . Exploration | -11 -10 -10 ------------- Run | Jun Mat Min Turns Passed 1092 | 69 616 407 Spaces Moved 698 | 66 486 146 Core 159 | 10 7 142 Treads . | . . . Legs . | . . . Wheels 539 | 56 479 4 Hover . | . . . Flight . | . . . Fastest Speed 50 | 50 90 100 Average Speed 128 | 83 99 245 Slowest Speed 250 | 90 200 250 Overloaded Moves . | . . . Propulsion Burnouts . | . . . Robots Hopped . | . . . Cave-ins Triggered . | . . . Exploration Rate (%) 35 | 4 60 43 Regions Visited 2 Branch Regions 1 Pre-discovered Areas . | . . . Known Exits Taken . | . . . Unknown Exits Taken 2 | 1 1 . Scrap Searched . | . . . Spaces Dug 2 | . 2 . Terrain Destroyed 14 | . 14 . Melee . | . . . Projectile 2 | . 2 . AOE 12 | . 12 . Terrain Rammed . | . . . Walls Destroyed . | . . . Machines Disabled . | . . . Actions | -11 -10 -10 --------- Run | Jun Mat Min Total 817 | 79 570 168 Wait 30 | . 28 2 Move 696 | 65 485 146 Hop . | . . . Pick Up 26 | 9 15 2 Fast Attach . | . . . Attach 14 | 5 6 3 Detach . | . . . Swap 9 | . 8 1 Drop 7 | . 7 . Fire 35 | . 21 14 Melee . | . . . Ram . | . . . Kick . | . . . Crush . | . . . Escape Stasis . | . . . Rewire . | . . . Trap . | . . . Miscellaneous . | . . . Route ------- -11/Junkyard -10/Materials (discovered 2 exits: [*Mat] / [*Min]) -10/Mines History --------- Turn | Location | Event 28 | -11/Junkyard | Discovered new exit (range 15) 70 | -11/Junkyard | Entered Materials 305 | -10/Materials | Build established: Mutant 383 | -10/Materials | Discovered new exit (range 15) 490 | -10/Materials | Lost 4 parts (2n2w) 624 | -10/Materials | Discovered new exit (range 7) 686 | -10/Materials | Entered Mines 717 | -10/Mines | Core integrity fell below 50% 755 | -10/Mines | Lost 5 parts (1n4w) 965 | -10/Mines | Found a damaged Exp. Sensor Array with a note attached 970 | -10/Mines | Found Prototype Device 1052 | -10/Mines | Core integrity fell below 20% 1093 | -10/Mines | Destroyed by G-47 Trooper with Particle Gun Last Messages --------------- 00716_ Flight Unit melted. 00716_ S-10 Pest destroyed. 00724_ Plasma Cutter destroyed. 00725_ Acquired 20 matter. 00730_ Acquired Lgt. Assault Rifle. 00743_ S-10 Pest destroyed. 00745_ Acquired 20 matter. 00851_ 1X|6> 10UTUHA8SWT#JMTCZH 00907_ K-01 Serf collects debris. 00964_ System corrupted: Energy discharge (-79). 00965_ A damaged part is partially visible under some rubble. There's a note attached: "Everyone keeps telling us we should avoid high-traffic areas because that's where patrols are more likely to show up, but that doesn't do us much good if we can't spot those areas until they're on top of us... With this we can! Deliver it to Megawrench for repairs then we'll never be afraid of an ambush while sneaking around Materials again, ha." 00970_ Acquired Prototype Device. 00975_ K-01 Serf collects debris. 01080_ QWSJPXTDO1#NI/VHRPDIR D7>/U5LNJA PZ &W Map ----- +----------------------------------------------------+ | #####??# ########## #???????????? | | #??# #????????## #???????????? | | ## #### #??????????# #??????????? | | # ### #???????????# ?????????? | | ## ######## #???????? ##### ??????????? | | ?## ##????## ## #????????? #?????? ??????????? | | ??# ##????? #?????????#?? #??????????????????? | | ??# ###### #???????? ??#??????????????????? | | ??## #??????# ???????????????????????? | | ???## #########????? ????????????????????????? | | ????# ##???????????? ?????????????????????????? | | ????# ######??????# #??????????????????????????? | | ????# #????? # #??????????????????????????? | | ????####### #???## #??????????????????????????? | | ??????????# #### #??????????????????????????? | | ??????????# """ #??????????????????????????? | | ????????####### """ #??????????????????????????? | | ???????## #### """ #??????????????????????????? | | #?????## ## ###????????????????????????? | | ???## ???????????????????? | | ### ## ???????????????????? | | ###?# ####### ???????????????????? | | ##????###?????????#?????????????????? | | # ##??????????????? #?????????????????? | | ## ### ############### #?????????????????? | | ?# ##?# g g @ #?????????????????? | | ?## ##??################# #?????????????????? | | ??###????????????????????? ##?????????????????? | | ??????????????????????????? ##??????????????????? | | ???????????????????????????###???????????????????? | | ?????????????????????????????????????????????????? | | ?????????????????????????????????????????????????? | | ?????????????????????????????????????????????????? | | | | | | | | | | | | | | | | | | | | | | | | | | | | | | | | | | | +----------------------------------------------------+ Best States ------------- Heat Dissipation 25 Energy Generation 12 Energy Capacity 265 Matter Stores 300 Matter Capacity 300 Sight Range 16 Terrain Scan Density 10 Power Shielding 33 Evasion (%) 50 Item Schematics ----------------- None Robot Schematics ------------------ None Fabricated ------------ Nothing Alien Tech Used ----------------- None Achievements -------------- None Challenges ------------ None Game ------ Seed PlatingHypervelocityRigger Manual? 0 Play Time 00:16:21 Cumulative 11.6 hours Start 2024.02.15 @ 22:07:06 End 2024.02.15 @ 22:22:02 Sessions 1 Manual Loads 0 Difficulty Rogue Special Mode None Game No. 14 Rogue 14 Adventurer 0 Explorer 0 Win Type - Total 0 Types 0/0/0/0/0/0/0/0/0 Lore% 17 Gallery% 15 Achievement% 14 Wizard Run 0 Options --------- ASCII 0 Keyboard 0 Movement Numpad Keybinds 0 Fullscreen 1 Font 24/Smallcaps Map View 76x50 Tactical HUD 1 Map Filters NONE Filters NONE Steam 1 RUN: 0e26c08a-239c-42f6-a6fb-67bd3632558f